[Event "Božićni turnir u VaraždinskimToplicama 26.12.2025."]
[Site "Varazdinske Toplice, Croatia"]
[Date "2025.12.26"]
[Round "2.5"]
[White "Zelenika, Zoran"]
[Black "Krizanic, Petar"]
[Result "1-0"]
[TimeControl "10"]
[WhiteFideId "14534452"]
[BlackFideId "14549557"]
[WhiteElo "2031"]
[BlackElo "1472"]

1. Nf3 {[%clk 00:09:59]} d5 {[%clk 00:09:58]} {[%emt 00:00:03]} 2. g3 {[%clk
00:09:58]} Nf6 {[%clk 00:09:57]} {[%emt 00:00:02]} 3. Bg2 {[%clk 00:09:56]}
{[%emt 00:00:01]} Bf5 {[%clk 00:09:54]} {[%emt 00:00:03]} 4. O-O {[%clk
00:09:54]} {[%emt 00:00:02]} e6 {[%clk 00:09:53]} 5. d4 {[%clk 00:09:51]}
{[%emt 00:00:04]} Be7 {[%clk 00:09:50]} {[%emt 00:00:04]} 6. c4 {[%clk
00:09:49]} {[%emt 00:00:01]} O-O {[%clk 00:09:47]} {[%emt 00:00:03]} 7. Nc3
{[%clk 00:09:47]} {[%emt 00:00:02]} dxc4 {[%clk 00:09:39]} {[%emt 00:00:09]} 8.
Qa4 {[%clk 00:09:39]} {[%emt 00:00:08]} c6 {[%clk 00:09:18]} {[%emt 00:00:21]}
9. Qxc4 {[%clk 00:09:32]} {[%emt 00:00:07]} Nbd7 {[%clk 00:09:16]} {[%emt
00:00:01]} 10. Nh4 {[%clk 00:09:01]} {[%emt 00:00:30]} Nb6 {[%clk 00:08:58]}
{[%emt 00:00:19]} 11. Qb3 {[%clk 00:09:00]} Bg6 {[%clk 00:08:10]} {[%emt
00:00:49]} 12. Nxg6 {[%clk 00:08:52]} {[%emt 00:00:08]} hxg6 {[%clk 00:08:08]}
{[%emt 00:00:01]} 13. Rd1 {[%clk 00:08:50]} Nfd5 {[%clk 00:07:48]} {[%emt
00:00:21]} 14. e4 {[%clk 00:08:46]} {[%emt 00:00:04]} Nf6 {[%clk 00:07:15]}
{[%emt 00:00:33]} 15. h3 {[%clk 00:08:37]} {[%emt 00:00:09]} Qc7 {[%clk
00:07:01]} {[%emt 00:00:15]} 16. Bf4 {[%clk 00:08:33]} {[%emt 00:00:03]} Qc8
{[%clk 00:06:44]} {[%emt 00:00:16]} 17. Rac1 {[%clk 00:08:30]} {[%emt
00:00:03]} Rd8 {[%clk 00:06:31]} {[%emt 00:00:14]} 18. d5 {[%clk 00:07:57]}
{[%emt 00:00:33]} exd5 {[%clk 00:06:01]} {[%emt 00:00:31]} 19. exd5 {[%clk
00:07:55]} {[%emt 00:00:01]} Qf5 {[%clk 00:04:46]} {[%emt 00:01:15]} 20. dxc6
{[%clk 00:07:38]} {[%emt 00:00:17]} bxc6 {[%clk 00:04:18]} {[%emt 00:00:28]} 21.
Bxc6 {[%clk 00:07:03]} {[%emt 00:00:35]} Rxd1+ {[%clk 00:03:23]} {[%emt
00:00:54]} 22. Rxd1 {[%clk 00:07:02]} {[%emt 00:00:02]} Rc8 {[%clk 00:03:18]}
{[%emt 00:00:06]} 23. Bg2 {[%clk 00:06:57]} {[%emt 00:00:03]} g5 {[%clk
00:03:13]} {[%emt 00:00:06]} 24. Be3 {[%clk 00:06:52]} {[%emt 00:00:04]} g4
{[%clk 00:03:01]} {[%emt 00:00:13]} 25. h4 {[%clk 00:06:46]} {[%emt 00:00:05]}
Nc4 {[%clk 00:02:40]} {[%emt 00:00:22]} 26. Bd4 {[%clk 00:05:36]} {[%emt
00:01:10]} Bd6 {[%clk 00:01:10]} {[%emt 00:01:31]} 27. Bxf6 {[%clk 00:05:27]}
{[%emt 00:00:08]} Qxf6 {[%clk 00:01:09]} {[%emt 00:00:01]} 28. Ne4 {[%clk
00:05:22]} {[%emt 00:00:05]} Qe6 {[%clk 00:01:03]} {[%emt 00:00:06]} 29. Nxd6
{[%clk 00:05:16]} {[%emt 00:00:07]} Nxd6 {[%clk 00:00:48]} {[%emt 00:00:15]} 30.
Qxe6 {[%clk 00:05:14]} {[%emt 00:00:01]} fxe6 {[%clk 00:00:48]} {[%emt
00:00:02]} 31. Rxd6 {[%clk 00:05:12]} {[%emt 00:00:01]} Rc1+ {[%clk 00:00:47]}
{[%emt 00:00:01]} 32. Kh2 {[%clk 00:05:11]} Rc2 {[%clk 00:00:46]} {[%emt
00:00:02]} 33. Kg1 {[%clk 00:04:50]} {[%emt 00:00:19]} Rxb2 {[%clk 00:00:43]}
{[%emt 00:00:04]} 34. Ra6 {[%clk 00:04:49]} Rb1+ {[%clk 00:00:42]} {[%emt
00:00:01]} 35. Bf1 {[%clk 00:04:48]} Kf7 {[%clk 00:00:39]} {[%emt 00:00:04]} 36.
Rxa7+ {[%clk 00:04:46]} {[%emt 00:00:02]} Kf6 {[%clk 00:00:39]} 37. Kg2 {[%clk
00:04:45]} Rb2 {[%clk 00:00:38]} {[%emt 00:00:02]} 38. Ra6 {[%clk 00:04:43]}
{[%emt 00:00:01]} g6 {[%clk 00:00:36]} {[%emt 00:00:02]} 39. Bc4 {[%clk
00:04:41]} {[%emt 00:00:02]} 1-0

[Event "Božićni turnir u VaraždinskimToplicama 26.12.2025."]
[Site "Varazdinske Toplice, Croatia"]
[Date "2025.12.26"]
[Round "2.6"]
[White "Klement, Dubravko"]
[Black "Mravunac, Damir"]
[Result "0-1"]
[TimeControl "10"]
[WhiteFideId "14515431"]
[BlackFideId "14502810"]
[WhiteElo "1790"]
[BlackElo "2044"]

1. d4 {[%clk 00:09:55]} {[%emt 00:00:04]} e6 {[%clk 00:09:59]} {[%emt
00:00:01]} 2. Nf3 {[%clk 00:09:53]} {[%emt 00:00:02]} f5 {[%clk 00:09:57]}
{[%emt 00:00:02]} 3. Nc3 {[%clk 00:09:52]} {[%emt 00:00:01]} Bb4 {[%clk
00:09:55]} {[%emt 00:00:02]} 4. Bd2 {[%clk 00:09:42]} {[%emt 00:00:10]} b6
{[%clk 00:09:51]} {[%emt 00:00:05]} 5. a3 {[%clk 00:09:39]} {[%emt 00:00:03]}
Bxc3 {[%clk 00:09:49]} {[%emt 00:00:01]} 6. Bxc3 {[%clk 00:09:38]} Nf6 {[%clk
00:09:47]} {[%emt 00:00:02]} 7. g3 {[%clk 00:09:23]} {[%emt 00:00:15]} Bb7
{[%clk 00:09:46]} {[%emt 00:00:01]} 8. Bg2 {[%clk 00:09:22]} O-O {[%clk
00:09:44]} {[%emt 00:00:02]} 9. O-O {[%clk 00:09:20]} {[%emt 00:00:01]} d6
{[%clk 00:09:30]} {[%emt 00:00:15]} 10. Re1 {[%clk 00:09:06]} {[%emt 00:00:14]}
Qe8 {[%clk 00:09:23]} {[%emt 00:00:07]} 11. b3 {[%clk 00:08:51]} {[%emt
00:00:15]} Nbd7 {[%clk 00:09:20]} {[%emt 00:00:03]} 12. Bb2 {[%clk 00:08:48]}
{[%emt 00:00:03]} Qh5 {[%clk 00:09:09]} {[%emt 00:00:11]} 13. h3 {[%clk
00:08:33]} {[%emt 00:00:14]} h6 {[%clk 00:09:00]} {[%emt 00:00:09]} 14. c4
{[%clk 00:08:20]} {[%emt 00:00:13]} Be4 {[%clk 00:08:55]} {[%emt 00:00:06]} 15.
Nh2 {[%clk 00:07:15]} {[%emt 00:01:05]} Bxg2 {[%clk 00:08:41]} {[%emt
00:00:15]} 16. Kxg2 {[%clk 00:07:14]} Ne4 {[%clk 00:08:29]} {[%emt 00:00:12]}
17. e3 {[%clk 00:06:47]} {[%emt 00:00:27]} Qg6 {[%clk 00:08:14]} {[%emt
00:00:14]} 18. Nf3 {[%clk 00:06:08]} {[%emt 00:00:39]} Rf7 {[%clk 00:07:56]}
{[%emt 00:00:20]} 19. Nh4 {[%clk 00:05:26]} {[%emt 00:00:41]} Qh7 {[%clk
00:07:48]} {[%emt 00:00:08]} 20. f3 {[%clk 00:05:07]} {[%emt 00:00:19]} Nef6
{[%clk 00:07:20]} {[%emt 00:00:28]} 21. Kh2 {[%clk 00:04:56]} {[%emt 00:00:12]}
g5 {[%clk 00:06:47]} {[%emt 00:00:33]} 22. Ng2 {[%clk 00:04:54]} {[%emt
00:00:01]} Raf8 {[%clk 00:06:18]} {[%emt 00:00:29]} 23. Qe2 {[%clk 00:03:46]}
{[%emt 00:01:08]} g4 {[%clk 00:04:31]} {[%emt 00:01:47]} 24. hxg4 {[%clk
00:03:27]} {[%emt 00:00:19]} fxg4 {[%clk 00:04:29]} {[%emt 00:00:02]} 25. f4
{[%clk 00:03:17]} {[%emt 00:00:11]} Qe4 {[%clk 00:03:55]} {[%emt 00:00:34]} 26.
Nh4 {[%clk 00:03:10]} {[%emt 00:00:06]} d5 {[%clk 00:03:33]} {[%emt 00:00:22]}
27. Rac1 {[%clk 00:02:30]} {[%emt 00:00:40]} Rg7 {[%clk 00:03:25]} {[%emt
00:00:08]} 28. Qg2 {[%clk 00:02:29]} {[%emt 00:00:02]} Qxg2+ {[%clk 00:03:16]}
{[%emt 00:00:08]} 29. Kxg2 {[%clk 00:02:25]} {[%emt 00:00:04]} c6 {[%clk
00:02:29]} {[%emt 00:00:47]} 30. f5 {[%clk 00:02:24]} {[%emt 00:00:02]} Re7
{[%clk 00:02:09]} {[%emt 00:00:19]} 31. fxe6 {[%clk 00:02:21]} {[%emt
00:00:04]} Rxe6 {[%clk 00:02:08]} 32. Nf5 {[%clk 00:02:19]} {[%emt 00:00:01]}
Ne4 {[%clk 00:02:01]} {[%emt 00:00:07]} 33. Rf1 {[%clk 00:02:05]} {[%emt
00:00:14]} Ref6 {[%clk 00:01:56]} {[%emt 00:00:05]} 34. Nh4 {[%clk 00:02:04]}
Rf2+ {[%clk 00:01:54]} {[%emt 00:00:03]} 35. Rxf2 {[%clk 00:01:54]} {[%emt
00:00:09]} Rxf2+ {[%clk 00:01:53]} {[%emt 00:00:01]} 36. Kg1 {[%clk 00:01:53]}
{[%emt 00:00:01]} Rxb2 {[%clk 00:01:50]} {[%emt 00:00:03]} 37. Nf5 {[%clk
00:01:49]} {[%emt 00:00:05]} h5 {[%clk 00:01:41]} {[%emt 00:00:09]} 38. Ne7+
{[%clk 00:01:45]} {[%emt 00:00:03]} Kf7 {[%clk 00:01:39]} {[%emt 00:00:02]} 39.
Nxc6 {[%clk 00:01:44]} {[%emt 00:00:02]} dxc4 {[%clk 00:01:30]} {[%emt
00:00:08]} 40. bxc4 {[%clk 00:01:40]} {[%emt 00:00:04]} Nxg3 {[%clk 00:01:25]}
{[%emt 00:00:05]} 41. Re1 {[%clk 00:01:28]} {[%emt 00:00:12]} h4 {[%clk
00:01:23]} {[%emt 00:00:02]} 42. Nb4 {[%clk 00:01:08]} {[%emt 00:00:21]} h3
{[%clk 00:01:17]} {[%emt 00:00:05]} 43. Rf1+ {[%clk 00:00:47]} {[%emt
00:00:22]} Nxf1 {[%clk 00:01:13]} {[%emt 00:00:02]} 44. Kxf1 {[%clk 00:00:46]}
h2 {[%clk 00:01:11]} {[%emt 00:00:03]} 45. Nd3 {[%clk 00:00:46]} 0-1

[Event "Božićni turnir u VaraždinskimToplicama 26.12.2025."]
[Site "Varazdinske Toplice, Croatia"]
[Date "2025.12.26"]
[Round "2.9"]
[White "Bozinovic, Bogdan"]
[Black "Fucek, Gordan"]
[Result "1-0"]
[TimeControl "10"]
[WhiteFideId "14502593"]
[BlackFideId "14513030"]
[WhiteElo "2129"]
[BlackElo "1762"]

1. d4 {[%clk 00:09:57]} {[%emt 00:00:02]} Nf6 {[%clk 00:09:59]} {[%emt
00:00:02]} 2. c4 {[%clk 00:09:55]} {[%emt 00:00:02]} g6 {[%clk 00:09:58]}
{[%emt 00:00:01]} 3. Nc3 {[%clk 00:09:53]} {[%emt 00:00:01]} Bg7 {[%clk
00:09:56]} {[%emt 00:00:02]} 4. e4 {[%clk 00:09:52]} {[%emt 00:00:01]} d6
{[%clk 00:09:56]} {[%emt 00:00:01]} 5. Nge2 {[%clk 00:09:50]} {[%emt 00:00:02]}
O-O {[%clk 00:09:53]} {[%emt 00:00:03]} 6. Ng3 {[%clk 00:09:48]} {[%emt
00:00:01]} e5 {[%clk 00:09:48]} {[%emt 00:00:06]} 7. d5 {[%clk 00:09:47]}
{[%emt 00:00:01]} a5 {[%clk 00:09:45]} {[%emt 00:00:03]} 8. Be2 {[%clk
00:09:45]} {[%emt 00:00:01]} Na6 {[%clk 00:09:39]} {[%emt 00:00:07]} 9. h4
{[%clk 00:09:43]} {[%emt 00:00:02]} h5 {[%clk 00:09:38]} {[%emt 00:00:02]} 10.
Bg5 {[%clk 00:09:40]} {[%emt 00:00:02]} Nc5 {[%clk 00:09:00]} {[%emt 00:00:38]}
11. Bxh5 {[%clk 00:09:35]} {[%emt 00:00:05]} Qd7 {[%clk 00:08:37]} {[%emt
00:00:22]} 12. Be2 {[%clk 00:09:33]} {[%emt 00:00:02]} Nh7 {[%clk 00:08:13]}
{[%emt 00:00:25]} 13. Be3 {[%clk 00:09:18]} {[%emt 00:00:15]} b6 {[%clk
00:07:49]} {[%emt 00:00:24]} 14. h5 {[%clk 00:09:12]} {[%emt 00:00:05]} g5
{[%clk 00:07:40]} {[%emt 00:00:10]} 15. h6 {[%clk 00:08:58]} {[%emt 00:00:14]}
Bh8 {[%clk 00:07:35]} {[%emt 00:00:04]} 16. Qd2 {[%clk 00:08:43]} {[%emt
00:00:15]} Qe7 {[%clk 00:07:33]} {[%emt 00:00:03]} 17. O-O-O {[%clk 00:08:30]}
{[%emt 00:00:12]} Bd7 {[%clk 00:07:21]} {[%emt 00:00:12]} 18. Rdg1 {[%clk
00:08:12]} {[%emt 00:00:18]} a4 {[%clk 00:07:02]} {[%emt 00:00:20]} 19. Qd1
{[%clk 00:08:05]} {[%emt 00:00:07]} c6 {[%clk 00:06:15]} {[%emt 00:00:48]} 20.
Bg4 {[%clk 00:07:59]} {[%emt 00:00:05]} b5 {[%clk 00:06:06]} {[%emt 00:00:10]}
21. Bxd7 {[%clk 00:07:43]} {[%emt 00:00:15]} Qxd7 {[%clk 00:05:52]} {[%emt
00:00:14]} 22. dxc6 {[%clk 00:07:36]} {[%emt 00:00:06]} Qxc6 {[%clk 00:05:50]}
{[%emt 00:00:03]} 23. cxb5 {[%clk 00:07:32]} {[%emt 00:00:04]} Qc8 {[%clk
00:05:31]} {[%emt 00:00:15]} 24. Nf5 {[%clk 00:07:20]} {[%emt 00:00:16]} Ra7
{[%clk 00:05:19]} {[%emt 00:00:12]} 25. Qxd6 {[%clk 00:07:03]} {[%emt
00:00:17]} Nxe4 {[%clk 00:05:12]} {[%emt 00:00:06]} 26. Qc6 {[%clk 00:05:56]}
{[%emt 00:01:07]} Rc7 {[%clk 00:04:55]} {[%emt 00:00:18]} 27. Qxe4 {[%clk
00:05:52]} {[%emt 00:00:04]} Rxc3+ {[%clk 00:04:51]} {[%emt 00:00:04]} 28. bxc3
{[%clk 00:05:51]} {[%emt 00:00:01]} Qxc3+ {[%clk 00:04:42]} {[%emt 00:00:08]}
29. Kd1 {[%clk 00:05:27]} {[%emt 00:00:24]} Rd8+ {[%clk 00:04:38]} {[%emt
00:00:04]} 30. Ke2 {[%clk 00:05:26]} {[%emt 00:00:01]} Nf6 {[%clk 00:04:23]}
{[%emt 00:00:16]} 31. h7+ {[%clk 00:03:40]} {[%emt 00:01:46]} Kf8 {[%clk
00:03:40]} {[%emt 00:00:43]} 32. Rc1 {[%clk 00:03:00]} {[%emt 00:00:39]} Nxe4
{[%clk 00:03:33]} {[%emt 00:00:08]} 33. Rxc3 {[%clk 00:02:59]} Nxc3+ {[%clk
00:03:30]} {[%emt 00:00:02]} 34. Kf3 {[%clk 00:02:57]} {[%emt 00:00:02]} e4+
{[%clk 00:03:20]} {[%emt 00:00:11]} 35. Kg4 {[%clk 00:02:54]} {[%emt 00:00:02]}
Rd5 {[%clk 00:03:08]} {[%emt 00:00:12]} 36. b6 {[%clk 00:02:37]} {[%emt
00:00:19]} Rb5 {[%clk 00:02:58]} {[%emt 00:00:08]} 37. a3 {[%clk 00:02:26]}
{[%emt 00:00:12]} Nd5 {[%clk 00:02:52]} {[%emt 00:00:06]} 38. Bd4 {[%clk
00:02:11]} {[%emt 00:00:14]} Bxd4 {[%clk 00:02:45]} {[%emt 00:00:08]} 39. Nxd4
{[%clk 00:02:09]} {[%emt 00:00:02]} Nf6+ {[%clk 00:02:40]} {[%emt 00:00:05]} 40.
Kg3 {[%clk 00:01:58]} {[%emt 00:00:11]} Rxb6 {[%clk 00:01:52]} {[%emt
00:00:48]} 41. h8=Q+ {[%clk 00:01:51]} {[%emt 00:00:07]} Ke7 {[%clk 00:01:50]}
{[%emt 00:00:02]} 42. Ra1 {[%emt 00:00:48]} 1-0

[Event "Božićni turnir u VaraždinskimToplicama 26.12.2025."]
[Site "Varazdinske Toplice, Croatia"]
[Date "2025.12.26"]
[Round "2.10"]
[White "Brnadic, Grga"]
[Black "Vukmirovic, Dusan"]
[Result "0-1"]
[TimeControl "10"]
[WhiteFideId "14578999"]
[BlackFideId "938785"]
[WhiteElo "1387"]
[BlackElo "2082"]

1. e4 {[%clk 00:09:59]} {[%emt 00:00:01]} c5 {[%clk 00:09:59]} {[%emt
00:00:01]} 2. Nc3 {[%clk 00:09:58]} e6 {[%clk 00:09:57]} {[%emt 00:00:02]} 3.
Nge2 {[%clk 00:09:58]} Nc6 {[%clk 00:09:55]} {[%emt 00:00:02]} 4. g3 {[%clk
00:09:57]} e5 {[%clk 00:09:11]} {[%emt 00:00:45]} 5. Bg2 {[%clk 00:09:52]}
{[%emt 00:00:04]} d6 {[%clk 00:09:10]} {[%emt 00:00:01]} 6. O-O {[%clk
00:09:50]} {[%emt 00:00:02]} Bg4 {[%clk 00:09:08]} {[%emt 00:00:01]} 7. f3
{[%clk 00:09:37]} {[%emt 00:00:13]} Be6 {[%clk 00:08:54]} {[%emt 00:00:14]} 8.
a3 {[%clk 00:09:35]} {[%emt 00:00:03]} Qd7 {[%clk 00:08:50]} {[%emt 00:00:04]}
9. d3 {[%clk 00:09:32]} {[%emt 00:00:03]} Bh3 {[%clk 00:08:40]} {[%emt
00:00:10]} 10. f4 {[%clk 00:09:31]} Bxg2 {[%clk 00:08:38]} {[%emt 00:00:03]} 11.
Kxg2 {[%clk 00:09:29]} {[%emt 00:00:01]} f6 {[%clk 00:08:34]} {[%emt 00:00:03]}
12. Nd5 {[%clk 00:09:25]} {[%emt 00:00:04]} Nge7 {[%clk 00:08:25]} {[%emt
00:00:10]} 13. Nec3 {[%clk 00:09:24]} {[%emt 00:00:01]} h5 {[%clk 00:07:59]}
{[%emt 00:00:25]} 14. f5 {[%clk 00:09:19]} {[%emt 00:00:06]} O-O-O {[%clk
00:07:24]} {[%emt 00:00:35]} 15. b4 {[%clk 00:09:09]} {[%emt 00:00:10]} Kb8
{[%clk 00:07:10]} {[%emt 00:00:13]} 16. bxc5 {[%clk 00:08:58]} {[%emt
00:00:11]} dxc5 {[%clk 00:07:08]} {[%emt 00:00:02]} 17. Be3 {[%clk 00:08:56]}
{[%emt 00:00:02]} Nd4 {[%clk 00:07:03]} {[%emt 00:00:06]} 18. Nxe7 {[%clk
00:08:53]} {[%emt 00:00:03]} Bxe7 {[%clk 00:06:57]} {[%emt 00:00:05]} 19. Nd5
{[%clk 00:08:53]} Rc8 {[%clk 00:06:28]} {[%emt 00:00:29]} 20. c3 {[%clk
00:08:31]} {[%emt 00:00:22]} Nc6 {[%clk 00:06:08]} {[%emt 00:00:20]} 21. Rf2
{[%clk 00:08:25]} {[%emt 00:00:06]} c4 {[%clk 00:05:31]} {[%emt 00:00:38]} 22.
Rb2 {[%clk 00:07:34]} {[%emt 00:00:50]} Na5 {[%clk 00:05:22]} {[%emt 00:00:09]}
23. Rab1 {[%clk 00:06:42]} {[%emt 00:00:52]} Bc5 {[%clk 00:05:14]} {[%emt
00:00:09]} 24. Rb5 {[%clk 00:05:44]} {[%emt 00:00:57]} Bxe3 {[%clk 00:04:48]}
{[%emt 00:00:26]} 25. Rxa5 {[%clk 00:05:43]} {[%emt 00:00:02]} Bb6 {[%clk
00:04:34]} {[%emt 00:00:12]} 26. Nxb6 {[%clk 00:05:40]} {[%emt 00:00:03]} axb6
{[%clk 00:04:34]} 27. Rxb6 {[%clk 00:05:28]} {[%emt 00:00:13]} Qxd3 {[%clk
00:04:18]} {[%emt 00:00:15]} 28. Qe1 {[%clk 00:04:36]} {[%emt 00:00:51]} Qc2+
{[%clk 00:03:35]} {[%emt 00:00:43]} 29. Kg1 {[%clk 00:03:35]} {[%emt 00:01:02]}
Rhd8 {[%clk 00:03:33]} {[%emt 00:00:02]} 30. Rd5 {[%clk 00:03:34]} {[%emt
00:00:02]} Rxd5 {[%clk 00:03:28]} {[%emt 00:00:04]} 31. exd5 {[%clk 00:03:33]}
{[%emt 00:00:01]} Rd8 {[%clk 00:02:58]} {[%emt 00:00:29]} 32. d6 {[%clk
00:03:11]} {[%emt 00:00:23]} Qd3 {[%clk 00:02:53]} {[%emt 00:00:05]} 33. Kg2
{[%clk 00:02:27]} {[%emt 00:00:43]} Qd5+ {[%clk 00:02:48]} {[%emt 00:00:05]} 34.
Kg1 {[%clk 00:01:40]} {[%emt 00:00:48]} Rxd6 {[%clk 00:02:40]} {[%emt
00:00:08]} 35. Rxd6 {[%clk 00:01:39]} {[%emt 00:00:01]} Qxd6 {[%clk 00:02:39]}
36. Qe2 {[%clk 00:01:38]} {[%emt 00:00:01]} Qd3 {[%clk 00:01:35]} {[%emt
00:01:03]} 37. Qxh5 {[%clk 00:01:36]} {[%emt 00:00:02]} Qe3+ {[%clk 00:01:21]}
{[%emt 00:00:14]} 38. Kg2 {[%clk 00:01:33]} {[%emt 00:00:04]} Qxc3 {[%clk
00:01:09]} {[%emt 00:00:12]} 39. Qh8+ {[%clk 00:01:18]} {[%emt 00:00:14]} Ka7
{[%clk 00:01:07]} {[%emt 00:00:02]} 40. Qxg7 {[%clk 00:01:17]} {[%emt
00:00:02]} Qc2+ {[%clk 00:01:06]} {[%emt 00:00:01]} 41. Kg1 {[%clk 00:01:15]}
{[%emt 00:00:02]} Qxf5 {[%clk 00:01:05]} {[%emt 00:00:01]} 42. Qc7 {[%clk
00:01:09]} {[%emt 00:00:06]} Qb1+ {[%clk 00:01:02]} {[%emt 00:00:02]} 43. Kg2
{[%clk 00:01:08]} {[%emt 00:00:02]} Qe4+ {[%clk 00:01:01]} {[%emt 00:00:01]} 44.
Kh3 {[%clk 00:01:06]} {[%emt 00:00:02]} Qd5 {[%clk 00:00:49]} {[%emt 00:00:12]}
45. a4 {[%clk 00:00:57]} {[%emt 00:00:10]} e4 {[%clk 00:00:41]} {[%emt
00:00:07]} 46. a5 {[%clk 00:00:53]} {[%emt 00:00:04]} Qc6 {[%clk 00:00:38]}
{[%emt 00:00:03]} 47. Qf4 {[%clk 00:00:46]} {[%emt 00:00:06]} c3 {[%clk
00:00:37]} {[%emt 00:00:02]} 48. Qe3+ {[%clk 00:00:38]} {[%emt 00:00:08]} Ka8
{[%clk 00:00:36]} {[%emt 00:00:01]} 49. a6 {[%clk 00:00:35]} {[%emt 00:00:03]}
c2 {[%clk 00:00:35]} {[%emt 00:00:01]} 50. axb7+ {[%clk 00:00:33]} {[%emt
00:00:02]} Kxb7 {[%clk 00:00:34]} {[%emt 00:00:01]} 51. Qb3+ {[%clk 00:00:32]}
{[%emt 00:00:01]} Kc8 {[%clk 00:00:31]} {[%emt 00:00:03]} 52. Qg8+ {[%clk
00:00:29]} {[%emt 00:00:02]} Kc7 {[%clk 00:00:30]} {[%emt 00:00:02]} 0-1

[Event "Božićni turnir u VaraždinskimToplicama 26.12.2025."]
[Site "Varazdinske Toplice, Croatia"]
[Date "2025.12.26"]
[Round "2.11"]
[White "Mitrovic, Boris"]
[Black "Hanjs, Vladimir"]
[Result "1-0"]
[TimeControl "10"]
[WhiteFideId "14610655"]
[BlackFideId "14531267"]
[WhiteElo "1968"]
[BlackElo "1777"]

1. Nf3 {[%clk 00:09:58]} {[%emt 00:07:57]} d5 {[%clk 00:09:58]} {[%emt
00:00:06]} 2. e3 {[%clk 00:09:57]} Nf6 {[%clk 00:09:56]} {[%emt 00:00:02]} 3.
c4 {[%clk 00:09:56]} c6 {[%clk 00:09:52]} {[%emt 00:00:04]} 4. Nc3 {[%clk
00:09:55]} Bg4 {[%clk 00:09:39]} {[%emt 00:00:13]} 5. h3 {[%clk 00:09:53]}
{[%emt 00:00:02]} Bh5 {[%emt 00:00:01]} 6. d4 e6 {[%clk 00:09:31]} {[%emt
00:00:07]} 7. Be2 {[%clk 00:09:52]} {[%emt 00:00:01]} Be7 {[%clk 00:09:29]}
{[%emt 00:00:02]} 8. O-O {[%clk 00:09:48]} {[%emt 00:00:03]} O-O {[%clk
00:09:27]} {[%emt 00:00:02]} 9. Ne5 {[%clk 00:09:47]} {[%emt 00:00:02]} Bxe2
{[%clk 00:09:25]} {[%emt 00:00:02]} 10. Qxe2 {[%clk 00:09:46]} {[%emt
00:00:01]} Nbd7 {[%clk 00:09:15]} {[%emt 00:00:10]} 11. Rd1 {[%clk 00:09:45]}
a6 {[%clk 00:08:53]} {[%emt 00:00:23]} 12. a3 {[%clk 00:09:41]} {[%emt
00:00:04]} Qc7 {[%clk 00:08:27]} {[%emt 00:00:26]} 13. f4 {[%clk 00:09:37]}
{[%emt 00:00:04]} Ne4 {[%clk 00:08:05]} {[%emt 00:00:22]} 14. cxd5 {[%clk
00:09:07]} {[%emt 00:00:30]} exd5 {[%clk 00:07:52]} {[%emt 00:00:13]} 15. Nxe4
{[%clk 00:08:56]} {[%emt 00:00:11]} dxe4 {[%clk 00:07:50]} {[%emt 00:00:02]} 16.
Qc2 {[%clk 00:08:54]} {[%emt 00:00:02]} Nf6 {[%clk 00:07:30]} {[%emt 00:00:20]}
17. Bd2 {[%clk 00:08:52]} {[%emt 00:00:02]} Qd6 {[%clk 00:07:08]} {[%emt
00:00:18]} 18. Bb4 {[%clk 00:08:31]} {[%emt 00:00:25]} Qe6 {[%clk 00:06:59]}
{[%emt 00:00:07]} 19. f5 {[%clk 00:08:18]} {[%emt 00:00:15]} Qxf5 {[%clk
00:06:40]} {[%emt 00:00:18]} 20. Bxe7 {[%clk 00:08:17]} {[%emt 00:00:02]} Rfe8
{[%clk 00:06:32]} {[%emt 00:00:07]} 21. Bxf6 {[%clk 00:08:14]} {[%emt
00:00:03]} Qxf6 {[%clk 00:06:30]} {[%emt 00:00:03]} 22. Rf1 {[%clk 00:08:11]}
{[%emt 00:00:04]} Qe6 {[%clk 00:06:19]} {[%emt 00:00:10]} 23. Rxf7 {[%clk
00:07:57]} {[%emt 00:00:14]} Re7 {[%clk 00:05:47]} {[%emt 00:00:32]} 24. Rxe7
{[%clk 00:07:32]} {[%emt 00:00:25]} Qxe7 {[%clk 00:05:45]} {[%emt 00:00:02]} 25.
Qxe4 {[%clk 00:07:31]} {[%emt 00:00:01]} Re8 {[%clk 00:05:37]} {[%emt
00:00:08]} 26. Rf1 {[%clk 00:07:29]} {[%emt 00:00:01]} Qg5 {[%clk 00:05:14]}
{[%emt 00:00:23]} 27. Qf4 {[%clk 00:07:26]} {[%emt 00:00:04]} 1-0